bitfinex/quotes_BTCUSD_20250620
["timestamp","ask_amount","ask_price","bid_price","bid_amount"]
[1750440642397,0.5923999,102970.0,102960.0,0.21367491]
[1750440642632,0.2523999,102970.0,102960.0,0.21367491]
[1750440642836,0.05045674,102970.0,102960.0,0.23309888]
[1750440643045,0.018,102970.0,102960.0,0.26542888]
[1750440643244,0.02671081,102970.0,102960.0,0.26542888]
[1750440643688,0.024,102970.0,102960.0,0.48696761]
[1750440643912,0.024,102970.0,102960.0,1.18836167]
[1750440644585,0.024,102970.0,102960.0,1.52836167]
[1750440645245,0.024,102970.0,102960.0,1.55706213]
[1750440645459,0.022,102970.0,102960.0,1.55706213]
[1750440645673,0.023,102970.0,102960.0,1.56506213]
[1750440646123,0.023,102970.0,102960.0,1.48734318]
[1750440646331,0.023,102970.0,102960.0,1.48634318]
[1750440646332,0.016,102970.0,102960.0,1.48634318]
[1750440646747,0.016,102970.0,102960.0,1.49034318]
[1750440647374,0.016,102970.0,102960.0,0.78894912]
[1750440647582,0.016,102970.0,102960.0,1.49034318]
[1750440648005,0.016,102970.0,102960.0,0.78894912]
[1750440648443,0.016,102970.0,102960.0,1.05350912]
[1750440648650,0.02571081,102970.0,102960.0,0.40570781]
[1750440648865,0.02571081,102970.0,102960.0,0.60481781]
[1750440649101,0.04513289,102970.0,102960.0,0.50953888]
[1750440649313,0.02571071,102970.0,102960.0,0.50953888]
[1750440649521,0.016,102970.0,102960.0,0.51076888]
[1750440649742,0.02571081,102970.0,102960.0,0.51076888]
[1750440650161,0.05484427,102970.0,102960.0,0.50953888]
[1750440650380,0.05484418,102970.0,102960.0,0.50953888]
[1750440650595,0.23936506,102970.0,102960.0,0.4899151]
[1750440650815,0.23936506,102970.0,102960.0,0.49962732]
[1750440651045,0.21994269,102970.0,102960.0,0.012]
[1750440651262,0.34901162,102970.0,102960.0,0.012]
[1750440651482,0.78647626,102970.0,102960.0,0.008]
[1750440651699,0.01942586,102950.0,102940.0,0.48755017]
[1750440651915,0.20516949,102960.0,102950.0,0.20398232]
[1750440652132,0.20516949,102960.0,102950.0,0.21369568]
[1750440652411,0.01942416,102960.0,102950.0,0.22340856]
[1750440652626,0.22338667,102960.0,102950.0,0.21369586]
[1750440652846,0.22338667,102960.0,102950.0,0.23312229]
[1750440653297,0.01942548,102950.0,102940.0,0.21371511]
[1750440653519,0.22338695,102960.0,102950.0,0.21369568]
[1750440653732,0.01942774,102940.0,102920.0,0.52052187]
[1750440653938,0.01942916,102930.0,102920.0,0.72179187]
[1750440654163,0.02914393,102930.0,102920.0,0.51775]
[1750440654376,0.01942944,102930.0,102920.0,0.46911187]
[1750440654594,0.23316664,102930.0,102920.0,0.46903187]
[1750440654817,0.2234731,102920.0,102910.0,0.06466]
[1750440655042,0.21375758,102920.0,102910.0,0.45922457]
[1750440655255,0.22347386,102920.0,102910.0,0.26488]
[1750440655708,0.2040616,102910.0,102900.0,0.015]
[1750440656200,0.30048053,102910.0,102900.0,0.015]
[1750440656627,0.64048053,102910.0,102900.0,0.015]
[1750440656834,0.67048053,102910.0,102900.0,0.015]
[1750440657256,0.67648053,102910.0,102900.0,0.016]
[1750440657470,0.79640769,102910.0,102900.0,0.016]
[1750440657692,5.84640769,102910.0,102900.0,0.016]
[1750440658697,5.75998053,102910.0,102900.0,0.016]
[1750440659932,5.77452138,102910.0,102900.0,0.016]
[1750440660194,5.77352138,102910.0,102900.0,0.016]
[1750440660364,5.82352138,102910.0,102900.0,0.016]
[1750440660699,5.77286228,102900.0,102890.0,0.0151]
[1750440660919,5.63408069,102880.0,102870.0,0.0001]
[1750440661129,5.28438095,102870.0,102860.0,0.0001]
[1750440661353,5.71965988,102870.0,102860.0,0.0001]
[1750440661561,5.73420073,102870.0,102860.0,0.0001]
[1750440661780,5.84219973,102870.0,102860.0,0.0001]
[1750440661992,6.07792973,102870.0,102860.0,0.0001]
[1750440662204,6.12955427,102870.0,102860.0,0.0001]
[1750440662410,6.14409512,102870.0,102860.0,0.0001]
[1750440662622,6.14809512,102870.0,102860.0,0.0001]
[1750440663051,5.26390306,102850.0,102840.0,0.0001]
[1750440663254,5.75061184,102850.0,102840.0,0.0001]
[1750440663474,5.83443638,102850.0,102840.0,0.0001]
[1750440663692,5.45559184,102850.0,102840.0,0.0001]
[1750440663906,5.62316199,102850.0,102840.0,0.0001]
[1750440664129,5.36032199,102850.0,102840.0,0.0001]
[1750440664358,5.36032199,102850.0,102840.0,0.20430059]
[1750440664359,0.01944456,102850.0,102840.0,0.20430059]
[1750440664577,0.04965056,102850.0,102840.0,0.22590723]
[1750440664795,0.23434782,102850.0,102840.0,0.25750732]
[1750440665067,0.03116688,102850.0,102840.0,0.27778405]
[1750440665287,0.21590325,102850.0,102840.0,0.0011]
[1750440665500,0.22562595,102850.0,102840.0,0.0011]
[1750440665708,0.22562595,102850.0,102840.0,0.01082384]
[1750440665926,0.21590344,102850.0,102840.0,0.0011]
[1750440666308,0.21590344,102850.0,102840.0,0.2053005]
[1750440666656,0.21590344,102850.0,102840.0,0.0011]
[1750440666863,0.21590344,102850.0,102840.0,0.20530059]
[1750440667068,0.21590344,102850.0,102840.0,0.0011]
[1750440667069,0.30145976,102850.0,102840.0,0.0011]
[1750440667274,0.30145976,102850.0,102840.0,0.19557685]
[1750440667489,0.31118237,102850.0,102840.0,0.0011]
[1750440668150,0.32515552,102850.0,102840.0,0.0011]
[1750440668331,0.32629552,102850.0,102840.0,0.0011]
[1750440668543,0.31118237,102850.0,102840.0,0.01082384]
[1750440668752,0.31118237,102850.0,102840.0,0.0011]
[1750440669120,0.31118237,102850.0,102840.0,0.19557685]
[1750440669322,0.31118237,102850.0,102840.0,0.0011]
[1750440669726,0.09727893,102850.0,102840.0,0.2053005]
[1750440669908,0.03116679,102850.0,102840.0,0.25654714]
[1750440670099,0.22562539,102850.0,102840.0,0.2382605]
[1750440670485,0.21590306,102850.0,102840.0,0.0011]
[1750440670598,0.56365651,102860.0,102840.0,0.0011]
[1750440670801,0.30059957,102850.0,102840.0,0.0011]
[1750440671266,0.29945957,102850.0,102840.0,0.0011]
[1750440671547,0.02916726,102850.0,102840.0,0.25740723]
[1750440671767,0.03889006,102850.0,102840.0,0.25740723]
[1750440671997,0.00972242,102850.0,102840.0,0.25740742]
[1750440672168,0.01944456,102850.0,102840.0,0.2671306]
[1750440672346,0.01944456,102850.0,102840.0,0.2976306]
[1750440672544,0.02916717,102850.0,102840.0,0.2976306]
[1750440672945,0.01944456,102850.0,102840.0,0.2976306]
[1750440673160,0.00972072,102870.0,102860.0,0.01944361]
[1750440673357,0.0292,102880.0,102870.0,0.27942157]
[1750440673565,0.21381991,102890.0,102880.0,0.2052813]
[1750440673808,0.21381991,102890.0,102880.0,0.03376]
[1750440674026,0.19440124,102880.0,102870.0,0.25882014]
[1750440674232,0.01943917,102880.0,102870.0,0.29770264]
[1750440674453,0.23328043,102880.0,102870.0,0.27942195]
[1750440674650,0.00971921,102880.0,102870.0,0.30858345]
[1750440674857,0.01271921,102880.0,102870.0,0.29014117]
[1750440675294,0.03315791,102880.0,102870.0,0.29014117]
[1750440675462,0.004,102880.0,102870.0,0.29014117]
[1750440675886,0.0137193,102880.0,102870.0,0.29014117]
[1750440676087,0.01371921,102880.0,102870.0,0.29014117]
[1750440676488,0.004,102880.0,102870.0,1.28592025]
[1750440676897,0.004,102880.0,102870.0,1.62592025]
[1750440677487,0.001,102910.0,102900.0,0.22351682]
[1750440677685,0.001,102910.0,102900.0,0.28667682]
[1750440677881,0.001,102910.0,102900.0,0.3964966]
[1750440678690,0.001,102910.0,102900.0,0.3994966]
[1750440679095,0.11571271,102910.0,102900.0,0.003]
[1750440679298,5.87442016,102910.0,102900.0,0.003]
[1750440679662,5.90662016,102910.0,102900.0,0.004]
[1750440680454,5.90662016,102910.0,102900.0,0.003]
[1750440680703,5.90662016,102910.0,102860.0,0.20532089]
[1750440680704,0.22358173,102870.0,102860.0,0.20532089]
[1750440680847,0.2041607,102860.0,102850.0,0.11137895]
[1750440681030,0.2041607,102860.0,102850.0,0.31555959]
[1750440681381,0.2041607,102860.0,102850.0,0.11137895]
[1750440681571,0.19443904,102860.0,102850.0,0.11137895]
[1750440681962,0.19445794,102850.0,102840.0,0.2237477]
[1750440682166,0.21390325,102850.0,102840.0,0.24738424]
[1750440682359,0.22362577,102850.0,102840.0,0.24738424]
[1750440682585,0.00972223,102850.0,102840.0,0.26683088]
[1750440682853,0.01944474,102850.0,102840.0,0.26683088]
[1750440683054,0.20418017,102850.0,102840.0,0.2571077]
[1750440683276,0.23334837,102850.0,102840.0,0.24738434]
[1750440683437,0.21390268,102850.0,102840.0,0.26683126]
[1750440683641,0.01072223,102850.0,102840.0,0.28255444]
[1750440683839,0.001,102850.0,102840.0,0.28255444]
[1750440684070,0.01072223,102850.0,102840.0,0.28255444]
[1750440684667,0.22462548,102850.0,102840.0,0.0383]
[1750440684994,0.22462548,102850.0,102840.0,0.24250059]
[1750440685195,0.22562548,102850.0,102840.0,0.23977685]
[1750440685334,0.20618074,102850.0,102840.0,0.0131]
[1750440685740,0.002,102850.0,102840.0,0.20757685]
[1750440685961,0.2159025,102850.0,102840.0,0.28242059]
[1750440686364,0.22562586,102850.0,102840.0,0.0131]
[1750440686564,0.21590344,102850.0,102840.0,0.21730059]
[1750440686783,0.21590344,102850.0,102840.0,0.22702414]
[1750440686784,0.21590288,102850.0,102840.0,0.22702414]
[1750440687032,0.22562558,102850.0,102840.0,0.0131]
[1750440687245,0.21590288,102850.0,102840.0,0.2173005]
[1750440687430,0.22562577,102850.0,102840.0,0.2185205]
[1750440687628,0.22562577,102850.0,102840.0,0.22824405]
[1750440687828,0.22562577,102850.0,102840.0,0.02404374]
[1750440688088,0.22562577,102850.0,102840.0,0.23796779]
[1750440688320,0.002,102850.0,102840.0,0.32001424]
[1750440688557,0.21590306,102850.0,102840.0,0.07692]
[1750440688723,0.21590306,102850.0,102840.0,0.22824424]
[1750440688933,0.21590306,102850.0,102840.0,0.02404384]
[1750440689144,0.21590306,102850.0,102840.0,0.0131]
[1750440689358,0.20618064,102850.0,102840.0,0.0131]
[1750440689775,0.20618064,102850.0,102840.0,0.21730069]
[1750440689983,0.21590344,102850.0,102840.0,0.22702434]
[1750440690135,0.02144437,102850.0,102840.0,0.22702443]
[1750440690388,0.01172204,102850.0,102840.0,0.25741463]
[1750440690573,0.002,102850.0,102840.0,0.31901463]
[1750440690989,0.03116678,102850.0,102840.0,0.2888149]
[1750440691197,0.002,102850.0,102840.0,0.38409317]
[1750440691402,0.002,102850.0,102840.0,0.41429317]
[1750440692170,0.01172214,102850.0,102840.0,0.31901424]
[1750440692478,0.02144456,102850.0,102840.0,0.31901424]
[1750440692626,0.02144447,102850.0,102840.0,0.31901424]
[1750440692829,0.03116708,102850.0,102840.0,0.31901424]
[1750440693010,0.02144456,102850.0,102840.0,0.31901424]
[1750440693212,0.03116726,102850.0,102840.0,0.31901424]
[1750440693869,0.2256252,102850.0,102840.0,0.21730059]
[1750440694079,0.2256252,102850.0,102840.0,0.22702405]
[1750440694284,0.2256252,102850.0,102840.0,0.21730059]
[1750440694660,0.02144456,102850.0,102840.0,0.24647078]
[1750440694884,0.002,102850.0,102840.0,0.30929078]
[1750440695531,0.51736395,102860.0,102850.0,0.22362548]
[1750440695730,0.4979211,102860.0,102850.0,0.25594548]
[1750440695941,0.51736376,102860.0,102850.0,0.28644548]
[1750440696568,0.50764229,102860.0,102850.0,0.28644548]
[1750440696818,0.001,102860.0,102850.0,0.30216752]
[1750440697027,0.01072129,102860.0,102850.0,0.30216752]
[1750440697202,0.01072119,102860.0,102850.0,0.30216752]
[1750440697434,0.03988552,102860.0,102850.0,0.30216752]
[1750440697644,0.21488275,102860.0,102850.0,0.006]
[1750440697819,0.21488275,102860.0,102850.0,0.21018064]
[1750440698079,0.21488275,102860.0,102850.0,0.006]
[1750440698481,0.21610275,102860.0,102850.0,0.006]
[1750440698903,0.31138168,102860.0,102850.0,0.006]
[1750440699159,0.33412937,102860.0,102850.0,0.006]
[1750440699380,0.33290937,102860.0,102850.0,0.21018064]
[1750440699607,0.21488275,102860.0,102850.0,0.21990315]
[1750440699826,0.22460365,102860.0,102850.0,0.20045794]
[1750440700042,0.20516099,102860.0,102850.0,0.006]
[1750440700261,0.20516099,102860.0,102850.0,0.22962586]
[1750440700476,0.02044342,102860.0,102850.0,0.23934809]
[1750440700685,0.19442617,102870.0,102850.0,0.22962586]
[1750440700914,0.70208246,102860.0,102850.0,0.22962586]
[1750440701129,0.70208246,102860.0,102850.0,0.89648385]
[1750440701130,0.72152579,102860.0,102850.0,0.89648385]
[1750440701336,0.05598352,102860.0,102850.0,0.90620618]
[1750440701589,0.21385769,102880.0,102860.0,0.26422532]
[1750440701881,0.21385769,102880.0,102870.0,0.23330263]
[1750440701882,0.02276659,102880.0,102870.0,0.23330263]
[1750440702123,0.01943671,102890.0,102880.0,0.2344832]
[1750440702359,0.0194352,102900.0,102890.0,0.23325729]
[1750440702603,0.01943492,102900.0,102890.0,0.23325729]
[1750440702899,0.21382889,102910.0,102900.0,0.22351729]
[1750440703134,0.22354501,102910.0,102900.0,0.22351729]
[1750440703380,0.00976637,102910.0,102900.0,0.2344548]
[1750440703604,0.02919988,102910.0,102900.0,0.2344548]
[1750440703850,0.01948303,102910.0,102900.0,0.2344548]
[1750440704090,0.01576637,102910.0,102900.0,0.2656548]
[1750440704329,0.00905,102910.0,102900.0,0.2646548]
[1750440704550,0.02848313,102910.0,102900.0,0.2646548]
[1750440704783,0.02076647,102910.0,102900.0,0.2656548]
[1750440705038,0.01105,102910.0,102900.0,0.2656548]
[1750440705230,0.02076637,102910.0,102900.0,0.2982548]
[1750440705533,0.01105,102910.0,102900.0,0.2982548]
[1750440705778,0.01776637,102910.0,102900.0,0.2982548]
[1750440706060,0.01105,102910.0,102900.0,0.2982548]
[1750440706302,0.01105,102910.0,102900.0,0.40807458]
[1750440706763,0.24426176,102910.0,102900.0,0.22451729]
[1750440707012,0.24426176,102910.0,102900.0,0.001]
[1750440707013,0.60990753,102910.0,102900.0,0.001]
[1750440707254,0.66132766,102910.0,102900.0,0.001]
[1750440709655,0.91904766,102910.0,102900.0,0.001]
[1750440710375,0.95184766,102910.0,102900.0,0.001]
[1750440710867,6.03474766,102910.0,102900.0,0.001]
[1750440711107,6.07552255,102910.0,102900.0,0.001]
[1750440711842,5.74412766,102910.0,102900.0,0.001]
[1750440712048,0.56182873,102910.0,102900.0,0.001]
[1750440712564,0.03148341,102910.0,102900.0,0.36563577]
[1750440712806,0.00971713,102910.0,102900.0,0.38341598]
[1750440713013,0.00971713,102910.0,102900.0,0.39313339]
[1750440713014,0.02915035,102910.0,102900.0,0.39313339]
[1750440713234,0.02915035,102910.0,102900.0,0.39413339]
[1750440713235,0.02643341,102910.0,102900.0,0.39413339]
[1750440713455,0.01671647,102910.0,102900.0,0.39313339]
[1750440713732,0.01871637,102910.0,102900.0,0.29885446]
[1750440713916,0.01,102910.0,102900.0,0.29885446]
[1750440714402,0.01,102910.0,102900.0,0.37657341]
[1750440714617,0.01,102910.0,102900.0,0.48639319]
[1750440715266,0.01,102910.0,102900.0,0.40867424]
[1750440718155,0.01971647,102910.0,102900.0,0.39413339]
[1750440718385,0.03915007,102910.0,102900.0,0.65081339]
[1750440718604,0.01,102910.0,102900.0,0.49197475]
[1750440718832,0.02943303,102910.0,102900.0,0.52297475]
[1750440719049,0.04886653,102910.0,102900.0,0.55297475]
[1750440719277,0.03914959,102910.0,102900.0,0.55297475]
[1750440719498,0.01971637,102910.0,102900.0,0.55297475]
[1750440719714,0.02943303,102910.0,102900.0,0.55297475]
[1750440719930,0.03914978,102910.0,102900.0,0.55297475]
[1750440720155,0.04886691,102910.0,102900.0,0.55297484]
[1750440720397,0.22377845,102910.0,102900.0,0.001]
[1750440720633,0.22377845,102910.0,102900.0,0.20508152]
[1750440721078,0.22377845,102910.0,102900.0,0.001]
[1750440721081,0.2140616,102910.0,102900.0,0.001]
[1750440721341,0.65052053,102910.0,102900.0,0.001]
[1750440721573,0.71672053,102910.0,102900.0,0.001]
[1750440722555,5.83026138,102910.0,102900.0,0.001]
[1750440722792,5.90599427,102910.0,102900.0,0.001]
[1750440723016,5.87426138,102910.0,102900.0,0.001]
[1750440723244,0.55499991,102890.0,102880.0,0.2776621]
[1750440723515,0.90619884,102890.0,102880.0,0.2776621]
[1750440723767,0.90619884,102890.0,102880.0,0.27629668]
[1750440724208,6.02149884,102890.0,102880.0,0.27629668]
[1750440724422,0.90599884,102890.0,102880.0,0.27629668]
[1750440724643,0.90481884,102890.0,102880.0,0.27629668]
[1750440724875,0.21381991,102890.0,102880.0,0.49013794]
[1750440725122,0.21381991,102890.0,102880.0,0.27629668]
[1750440725342,0.20410127,102890.0,102880.0,0.27629668]
[1750440725769,0.20410127,102890.0,102880.0,0.28129668]
[1750440725979,0.20410127,102890.0,102880.0,0.28601674]
[1750440726204,0.20510127,102890.0,102880.0,0.28729668]
[1750440726421,0.3015602,102890.0,102880.0,0.28729668]
[1750440726632,0.3003802,102890.0,102880.0,0.29229668]
[1750440727287,0.32947587,102890.0,102880.0,0.29229668]
[1750440727501,0.3015602,102890.0,102880.0,0.29229668]
[1750440727943,0.3003802,102890.0,102880.0,0.29229668]
[1750440729886,0.20510127,102890.0,102880.0,0.50613775]
[1750440730305,0.03015667,102890.0,102880.0,0.52557701]
[1750440730516,0.21481991,102890.0,102880.0,0.52557701]
[1750440730729,0.21481991,102890.0,102880.0,0.52671701]
[1750440730950,0.21481991,102890.0,102880.0,0.32479668]
[1750440731168,0.38711113,102890.0,102880.0,0.29229668]
[1750440731393,0.29184128,102890.0,102880.0,0.29229668]
[1750440731849,0.63184128,102890.0,102880.0,0.29229668]
[1750440732279,0.63066128,102890.0,102880.0,0.29229668]
[1750440733180,0.20510061,102890.0,102880.0,0.50613756]
[1750440733399,0.001,102890.0,102880.0,0.66011591]
[1750440733625,0.001,102890.0,102880.0,1.47196125]
[1750440734306,0.001,102890.0,102880.0,0.76993569]
[1750440734966,0.001,102890.0,102880.0,1.10993569]
[1750440735183,0.001,102890.0,102880.0,1.28657674]
[1750440736694,0.001,102890.0,102880.0,2.1718973]
[1750440736916,0.00010129,102890.0,102880.0,2.28202537]
[1750440737822,0.00010129,102890.0,102880.0,1.04678481]
[1750440738048,0.5538201,102890.0,102880.0,0.28529668]
[1750440738266,0.5538201,102890.0,102880.0,0.29929668]
[1750440738479,0.5538201,102890.0,102880.0,0.29029668]
[1750440738690,0.5538201,102890.0,102880.0,0.27629668]
[1750440738906,0.5538201,102890.0,102880.0,0.29629668]
[1750440739340,0.5538201,102890.0,102880.0,0.27629668]
[1750440739562,0.5550001,102890.0,102880.0,0.27829668]
[1750440739774,0.65027903,102890.0,102880.0,0.27829668]
[1750440740212,0.90399903,102890.0,102880.0,0.27829668]
[1750440740634,0.90499903,102890.0,102880.0,0.27829668]
[1750440743034,0.93759903,102890.0,102880.0,0.27829668]
[1750440743455,5.98759903,102890.0,102880.0,0.27829668]
[1750440743662,6.02059903,102890.0,102880.0,0.27829668]
[1750440745196,6.02059903,102890.0,102880.0,0.28829668]
[1750440746077,5.81687903,102890.0,102880.0,0.28829668]
[1750440746305,6.25236418,102890.0,102880.0,0.012]
[1750440746525,0.55504227,102860.0,102850.0,0.0001]
[1750440746754,0.9031212,102860.0,102850.0,0.0001]
[1750440746976,0.6503212,102860.0,102850.0,0.0001]
[1750440747187,0.21388227,102860.0,102850.0,0.0001]
[1750440747406,0.21388227,102860.0,102850.0,0.00126]
[1750440747833,0.21388227,102860.0,102850.0,0.0001]
[1750440748090,0.01944323,102860.0,102850.0,0.19455794]
[1750440748297,0.02916442,102860.0,102850.0,0.28908548]
[1750440748500,0.23332541,102860.0,102850.0,0.28908548]
[1750440748730,0.03888637,102860.0,102850.0,0.28908548]
[1750440748944,0.03988637,102860.0,102850.0,0.28908548]
[1750440749171,0.03016442,102860.0,102850.0,0.28908548]
[1750440749435,0.001,102860.0,102850.0,0.28908548]
[1750440749651,0.02044248,102860.0,102850.0,0.54152548]
[1750440749923,0.02044248,102860.0,102850.0,0.28908548]
[1750440749924,0.04088581,102860.0,102850.0,0.28908548]
[1750440750127,0.05060766,102860.0,102850.0,0.28908548]
[1750440750629,0.04088581,102860.0,102850.0,0.28908548]
[1750440750859,0.19443383,102880.0,102860.0,0.19443876]
[1750440751114,0.1944218,102870.0,102860.0,0.20416061]
[1750440751372,0.19315312,102870.0,102860.0,0.20416061]
[1750440751580,0.19315312,102870.0,102860.0,0.20532061]
[1750440751800,0.28971276,102880.0,102860.0,0.29858466]
[1750440752020,0.01944106,102870.0,102860.0,0.29858485]
[1750440752237,0.02244059,102870.0,102860.0,0.29858485]
[1750440752440,0.03216103,102870.0,102860.0,0.29858485]
[1750440752664,0.24602326,102870.0,102860.0,0.28886365]
[1750440752876,0.003,102870.0,102860.0,0.29858494]
[1750440753079,0.003,102870.0,102860.0,0.39386387]
[1750440753286,0.003,102870.0,102860.0,0.64582387]
[1750440753495,0.003,102870.0,102860.0,0.66036472]
[1750440754146,0.005,102870.0,102860.0,0.66036472]
[1750440754562,0.003,102870.0,102860.0,0.39386387]
[1750440754774,0.003,102870.0,102860.0,0.64558387]
[1750440754979,0.003,102870.0,102860.0,0.65458387]
[1750440755203,0.22353961,102890.0,102880.0,0.22356028]
[1750440755403,0.0291561,102890.0,102880.0,0.25552028]
[1750440755694,0.03887512,102890.0,102880.0,0.28712028]
[1750440756132,0.03887512,102890.0,102870.0,0.27742167]
[1750440756133,0.22356028,102880.0,102870.0,0.27742167]
[1750440756395,0.22356094,102880.0,102870.0,0.23690105]
[1750440756792,0.21384126,102880.0,102870.0,0.28714248]
[1750440757048,0.21384126,102880.0,102870.0,0.27742186]
[1750440757267,0.2041213,102880.0,102870.0,0.27742186]
[1750440757471,0.2041213,102880.0,102870.0,0.28714239]
[1750440757686,0.2041213,102880.0,102870.0,0.28714258]
[1750440758310,0.2041213,102880.0,102870.0,0.30086311]
[1750440758521,0.2041213,102880.0,102870.0,0.30586311]
[1750440758933,0.00971977,102880.0,102870.0,0.30586264]
[1750440759144,0.02915922,102880.0,102870.0,0.31558298]
[1750440759349,0.23328052,102880.0,102870.0,0.31558298]
[1750440759577,0.02915828,102880.0,102870.0,0.31558298]
[1750440759792,0.03887815,102880.0,102870.0,0.31558298]
[1750440760009,0.23327939,102880.0,102870.0,0.31558298]
[1750440760245,0.03887815,102880.0,102870.0,0.31558298]
[1750440760677,0.24299945,102880.0,102870.0,0.31558298]
[1750440760919,0.04859811,102880.0,102870.0,0.31558298]
[1750440761129,0.24299935,102880.0,102870.0,0.31558298]
[1750440761345,0.2430002,102880.0,102870.0,0.31558298]
[1750440761571,0.02915894,102880.0,102870.0,0.31558298]
[1750440761785,0.23328024,102880.0,102870.0,0.31558298]
[1750440762229,0.02915894,102880.0,102870.0,0.31558298]
[1750440762451,0.23328014,102880.0,102870.0,0.31558298]
[1750440762667,0.02915894,102880.0,102870.0,0.31558298]
[1750440762882,0.02915884,102880.0,102870.0,0.31558298]
[1750440763101,0.00971921,102880.0,102870.0,0.31558298]
[1750440763324,0.21381982,102890.0,102880.0,0.21384088]
[1750440763593,0.24297612,102890.0,102880.0,0.28792037]
[1750440763811,0.03887475,102890.0,102880.0,0.28792037]
[1750440764043,0.2332571,102890.0,102880.0,0.06436]
[1750440764285,0.21384107,102880.0,102860.0,0.35144258]
[1750440764512,0.00971883,102890.0,102880.0,0.22456056]
[1750440764724,0.24297639,102890.0,102880.0,0.21584107]
[1750440764934,0.22353921,102890.0,102880.0,0.21584107]
[1750440765150,0.22353921,102890.0,102880.0,0.22556075]
[1750440765364,0.22353921,102890.0,102880.0,0.22456075]
[1750440765585,0.21382038,102890.0,102880.0,0.21484117]
[1750440765806,0.21382038,102890.0,102880.0,0.22456085]
[1750440766024,0.21382038,102890.0,102880.0,0.21484117]
[1750440766248,0.21382038,102890.0,102880.0,0.22456094]
[1750440766686,0.20410146,102890.0,102880.0,0.21484117]
[1750440766907,0.20410146,102890.0,102880.0,0.22456094]
[1750440767130,0.19438235,102890.0,102880.0,0.002]
[1750440768503,1.0237236,102900.0,102880.0,0.21584069]
[1750440768754,1.04199984,102900.0,102890.0,0.00971892]
[1750440768985,0.68257899,102920.0,102910.0,0.21377845]
[1750440769209,0.53437899,102920.0,102910.0,0.00971722]
[1750440769433,0.19434457,102910.0,102900.0,0.2052255]
[1750440769648,0.01943521,102900.0,102890.0,0.28669836]
[1750440769862,0.0398706,102900.0,102890.0,0.53629836]
[1750440770082,0.03015262,102900.0,102890.0,0.28669836]
[1750440770737,0.21381973,102890.0,102880.0,0.26728073]
[1750440770964,0.02915621,102890.0,102880.0,0.27700013]
[1750440771243,0.02915838,102880.0,102870.0,0.23446254]
[1750440771473,0.02915838,102880.0,102870.0,0.26626254]
[1750440771683,0.03887825,102880.0,102870.0,0.23330254]
[1750440771905,0.24147955,102880.0,102870.0,0.2235822]
[1750440772114,0.22356085,102880.0,102870.0,0.21386205]
[1750440772561,0.21384117,102880.0,102870.0,0.22858286]
[1750440773196,0.2041213,102880.0,102870.0,0.21886205]
[1750440773402,0.2041213,102880.0,102870.0,0.22858286]
[1750440774075,0.21384107,102880.0,102870.0,0.2413032]
[1750440774291,0.21384107,102880.0,102870.0,0.23158258]
[1750440774506,0.19440124,102880.0,102870.0,0.008]
[1750440774719,0.21384041,102880.0,102870.0,0.23158248]
[1750440774934,0.02915875,102880.0,102870.0,0.24249282]
[1750440775146,0.23327995,102880.0,102870.0,0.26337257]
[1750440775358,0.03887871,102880.0,102870.0,0.28281335]
[1750440775586,0.23327995,102880.0,102870.0,0.31461335]
[1750440776009,0.23327995,102880.0,102870.0,0.29517257]
[1750440776213,0.23327995,102880.0,102870.0,0.29517267]
[1750440776431,0.23327995,102880.0,102870.0,0.31461382]
[1750440776635,0.24300001,102880.0,102870.0,0.31461382]
[1750440776863,0.23328071,102880.0,102870.0,0.29517257]
[1750440777077,0.23328071,102880.0,102870.0,0.3048931]
[1750440777282,0.22356113,102880.0,102870.0,0.3048931]
[1750440777498,0.21384126,102880.0,102870.0,0.29517257]
[1750440778135,0.45298137,102890.0,102870.0,0.30489291]
[1750440778350,0.21384117,102880.0,102870.0,0.3048931]
[1750440778812,0.21384117,102880.0,102870.0,0.27573114]
[1750440779018,0.21384117,102880.0,102870.0,0.28545195]
[1750440779019,0.2041213,102880.0,102870.0,0.28545195]
[1750440779222,0.2041213,102880.0,102870.0,0.29517267]
[1750440779455,0.2041213,102880.0,102870.0,0.3048932]
[1750440779663,0.2041213,102880.0,102870.0,0.3018932]
[1750440779869,0.2041213,102880.0,102870.0,0.31361364]
[1750440780110,0.01943926,102880.0,102870.0,0.28445111]
[1750440780323,0.23327958,102880.0,102870.0,0.27273105]
[1750440780532,0.20412111,102880.0,102870.0,0.19942014]
[1750440780749,0.19440124,102880.0,102870.0,0.009]
[1750440780953,0.53897017,102880.0,102870.0,0.009]
[1750440781166,0.53397017,102880.0,102870.0,0.009]
[1750440781393,6.01321122,102880.0,102870.0,0.009]
[1750440781615,6.07741122,102880.0,102870.0,0.009]
[1750440782040,5.98817017,102880.0,102870.0,0.009]
[1750440782464,6.47637017,102880.0,102870.0,0.004]
[1750440782684,0.55388227,102860.0,102850.0,0.0001]
[1750440782891,0.8980512,102860.0,102850.0,0.0001]
[1750440783108,0.9294512,102860.0,102850.0,0.0001]
[1750440783337,6.0107512,102860.0,102850.0,0.0001]
[1750440784006,6.0607512,102860.0,102850.0,0.0001]
[1750440784240,6.0835795,102860.0,102850.0,0.0001]
[1750440784438,6.09912035,102860.0,102850.0,0.0001]
[1750440784649,6.07629205,102860.0,102850.0,0.0001]
[1750440784863,6.1715619,102860.0,102850.0,0.0001]
[1750440785082,6.1213219,102860.0,102850.0,0.0001]
[1750440785541,5.7640312,102860.0,102850.0,0.0001]
[1750440785755,6.0113512,102860.0,102850.0,0.0001]
[1750440785984,0.6501612,102860.0,102850.0,0.0001]
[1750440786200,0.8975212,102860.0,102850.0,0.0001]
[1750440786414,0.3131612,102860.0,102850.0,0.0001]
[1750440786667,0.3121612,102860.0,102850.0,0.24589344]
[1750440786873,0.02644266,102860.0,102850.0,0.30706079]
[1750440787078,0.03616442,102860.0,102850.0,0.30706079]
[1750440787299,0.01472119,102860.0,102850.0,0.30706079]
[1750440787505,0.03516395,102860.0,102850.0,0.30706079]
[1750440787714,0.03016395,102860.0,102850.0,0.30706079]
[1750440787937,0.04960737,102860.0,102850.0,0.30706079]
[1750440788145,0.002,102860.0,102850.0,0.30706079]
[1750440789310,0.0117211,102860.0,102850.0,0.30706079]
[1750440789536,0.02144248,102860.0,102850.0,0.54437818]
[1750440789922,0.03116395,102860.0,102850.0,0.54437818]
[1750440790124,0.04088561,102860.0,102850.0,0.54437818]
[1750440790349,0.03116395,102860.0,102850.0,0.54437818]
[1750440790566,0.02144248,102860.0,102850.0,0.54437818]
[1750440791001,0.02144248,102860.0,102850.0,1.35623504]
[1750440791002,0.002,102860.0,102850.0,1.35623504]
[1750440791428,0.002,102860.0,102850.0,0.65419796]
[1750440791639,0.002,102860.0,102850.0,0.65387796]
[1750440791846,0.002,102860.0,102850.0,0.54397818]